fUST/lending_fUST_20260121
["ID","MTS","AMOUNT","RATE_DAILY","PERIOD"]
[402877502,1768950638636,-300.0,0.00016737,2]
[402877504,1768950638646,-204.0,0.00017425,2]
[402877506,1768950638655,-2531.73648535,0.000176,2]
[402877508,1768950638665,-151.0,0.000177,2]
[402877510,1768950638674,-500.0,0.00017724,2]
[402877512,1768950638684,-290.46863445,0.00017725,3]
[402877514,1768950638699,-729.41544042,0.00017725,3]
[402877516,1768950638712,-1558.73117524,0.00017725,3]
[402877748,1768950640991,-552.33474989,0.00017725,3]
[402877750,1768950641001,-1774.2,0.00017725,3]
[402877751,1768950641011,-887.1,0.00017725,3]
[402877752,1768950641020,-443.55,0.00017725,3]
[402877753,1768950641029,-221.78,0.00017725,3]
[402877754,1768950641038,-665.36,0.00017725,3]
[402877755,1768950641048,-500.0,0.00017734,2]
[402877756,1768950641057,-500.0,0.00017734,2]
[402877757,1768950641066,-500.0,0.00017734,2]
[402877758,1768950641075,-500.0,0.00017734,2]
[402877759,1768950641084,-500.0,0.00017734,2]
[402877760,1768950641093,-500.0,0.00017734,2]
[402877761,1768950641103,-500.0,0.00017734,2]
[402877762,1768950641112,-500.0,0.00017734,2]
[402877763,1768950641121,-500.0,0.00017734,2]
[402877764,1768950641131,-500.0,0.00017734,2]
[402877765,1768950641140,-500.0,0.00017734,2]
[402877766,1768950641149,-500.0,0.00017734,2]
[402877767,1768950641158,-500.0,0.00017734,2]
[402877768,1768950641167,-500.0,0.00017734,2]
[402877769,1768950641176,-500.0,0.00017734,2]
[402877770,1768950641185,-500.0,0.00017734,2]
[402877771,1768950641194,-500.0,0.00017734,2]
[402877772,1768950641204,-500.0,0.00017734,2]
[402877773,1768950641213,-217.26840981,0.00017734,2]
[402877774,1768950641224,-187.52752176,0.00017734,2]
[402877775,1768950641233,-141.04270616,0.00017734,2]
[402877776,1768950641244,-84.93578712,0.00017734,2]
[402877778,1768950641253,-205.74824329,0.00017734,2]
[402877779,1768950641262,-1040.10398434,0.00017834,2]
[402877780,1768950641271,-700.18357165,0.00017935,2]
[402877784,1768950641293,-889.42,0.00017935,2]
[402878098,1768950644405,-15931.78445586,0.00017935,2]
[402878100,1768950644416,-12058.57452486,0.00017935,2]
[402878102,1768950644428,-5105.27622,0.00017935,2]
[402878107,1768950644468,-442.495,0.00017935,2]
[402878329,1768950646527,-3221.72403329,0.00017756,2]
[402882468,1768951656790,300.0,0.00011679,120]
[402882469,1768951658505,300.0,0.00011679,120]
[402882470,1768951660324,300.0,0.00011679,120]
[402882471,1768951662039,300.0,0.00011679,120]
[402882472,1768951663774,300.0,0.00011679,120]
[402882473,1768951665509,300.0,0.00011679,120]
[402882474,1768951667257,300.0,0.00011679,120]
[402882475,1768951669036,300.0,0.00011679,120]
[402882476,1768951670746,181.59,0.00011679,120]
[402882477,1768951690056,300.0,0.00011595,120]
[402882478,1768951691818,300.0,0.00011595,120]
[402882589,1768951832577,-152.177809,0.0001,4]
[402882591,1768951832586,-264.98722518,0.0001235,2]
[402882593,1768951832599,-1078.08916142,0.0001235,2]
[402882595,1768951832610,-294.54364191,0.0001235,2]
[402882597,1768951832625,-3362.37997149,0.0001235,2]
[402882599,1768951832634,-594.0,0.0001235,2]
[402882601,1768951832643,-1792.0,0.00012475,5]
[402882603,1768951832652,-5019.2860257,0.00012475,2]
[402882605,1768951832662,-162.48904,0.000128,2]
[402882607,1768951832671,-177.0,0.00013175,2]
[402882609,1768951832680,-500.0,0.00013272,2]
[402882611,1768951832690,-295.41765991,0.00013272,2]
[402882612,1768951832700,-190.84958839,0.00013272,2]
[402882613,1768951832710,-259.02794609,0.00013272,2]
[402882614,1768951832719,-500.0,0.00013272,2]
[402882615,1768951832729,-413.50510657,0.00013272,2]
[402882616,1768951832738,-130.83650695,0.00013273,2]
[402882690,1768951837700,-369.16349305,0.00013273,2]
[402882692,1768951837710,-500.0,0.00013273,2]
[402882694,1768951837720,-500.0,0.00013273,2]
[402882696,1768951837730,-179.89432296,0.00013273,2]
[402882698,1768951837739,-500.0,0.00013273,2]
[402882700,1768951837749,-500.0,0.00013273,2]
[402882702,1768951837759,-315.55117626,0.00013273,2]
[402882704,1768951837768,-500.0,0.00013273,2]
[402882706,1768951837777,-168.67149114,0.00013273,2]
[402882708,1768951837787,-500.0,0.00013273,2]
[402882711,1768951837796,-500.0,0.00013273,2]
[402882714,1768951837806,-500.0,0.00013273,2]
[402882717,1768951837815,-500.0,0.00013273,2]
[402882720,1768951837824,-500.0,0.00013273,2]
[402882723,1768951837834,-500.0,0.00013273,2]
[402882726,1768951837843,-500.0,0.00013273,2]
[402882729,1768951837853,-562.21911947,0.00013273,2]
[402882732,1768951837862,-500.0,0.00013273,2]
[402882735,1768951837871,-500.0,0.00013273,2]
[402882736,1768951837880,-500.0,0.00013273,2]
[402882738,1768951837890,-500.0,0.00013273,2]
[402882740,1768951837899,-500.0,0.00013273,2]
[402882742,1768951837908,-500.0,0.00013273,2]
[402882744,1768951837917,-500.0,0.00013273,2]
[402882745,1768951837926,-285.41520023,0.00013273,2]
[402882748,1768951837937,-214.58479977,0.00013273,2]
[402882749,1768951837947,-500.0,0.00013273,2]
[402882752,1768951837956,-500.0,0.00013273,2]
[402882754,1768951837965,-500.0,0.00013273,2]
[402882756,1768951837975,-619.03226299,0.00013273,2]
[402882758,1768951837984,-500.0,0.00013273,2]
[402882760,1768951837993,-402.84208179,0.00013273,2]
[402882762,1768951838003,-237.7635242,0.00013273,2]
[402882764,1768951838012,-500.0,0.00013273,2]
[402882766,1768951838022,-648.56695785,0.00013273,2]
[402882767,1768951838032,-500.0,0.00013273,2]
[402882769,1768951838046,-500.0,0.00013273,2]
[402882771,1768951838056,-500.0,0.00013273,2]
[402882773,1768951838065,-500.0,0.00013273,2]
[402882775,1768951838077,-384.3739424,0.00013273,2]
[402882777,1768951838086,-500.0,0.00013273,2]
[402882779,1768951838096,-500.0,0.00013273,2]
[402882781,1768951838107,-500.0,0.00013273,2]
[402882783,1768951838118,-500.0,0.00013273,2]
[402882785,1768951838127,-500.0,0.00013273,2]
[402882787,1768951838137,-500.0,0.00013273,2]
[402882789,1768951838146,-500.0,0.00013273,2]
[402882791,1768951838155,-500.0,0.00013273,2]
[402882793,1768951838164,-500.0,0.00013273,2]
[402882795,1768951838173,-344.64451203,0.00013273,2]
[402882797,1768951838183,-500.0,0.00013273,2]
[402882799,1768951838192,-500.0,0.00013273,2]
[402882801,1768951838202,-500.0,0.00013273,2]
[402882803,1768951838213,-534.39213673,0.00013698,2]
[402882805,1768951838222,-274.667,0.00013698,2]
[402882807,1768951838231,-65611.4634258,0.00013699,2]
[402882809,1768951838241,-158.1849453,0.00013699,2]
[402882810,1768951838251,-204.0,0.00015175,2]
[402882811,1768951838260,-431.93766834,0.0001699,2]
[402882812,1768951838270,-231.0,0.00017175,2]
[402882813,1768951838279,-153.0,0.00017421,2]
[402882814,1768951838462,-798.45286774,0.00017498,2]
[402882815,1768951838480,-305.1488827,0.00017616,2]
[402882816,1768951838490,-194.4255045,0.00017616,2]
[402882817,1768951838500,-1042.8580441,0.00017728,2]
[402882818,1768951838510,-500.0,0.0001779,2]
[402882819,1768951838519,-500.0,0.0001779,2]
[402882820,1768951838528,-500.0,0.0001779,2]
[402882821,1768951838538,-500.0,0.0001779,2]
[402882822,1768951838547,-500.0,0.0001779,2]
[402882823,1768951838557,-500.0,0.0001779,5]
[402882824,1768951838567,-216.1459376,0.0001779,2]
[402882825,1768951838577,-537.6845,0.00017824,2]
[402882826,1768951838586,-3161.16,0.00017825,3]
[402882827,1768951838596,-1580.58,0.00017825,3]
[402882828,1768951838606,-790.29,0.00017825,3]
[402882829,1768951838616,-790.29,0.00017825,3]
[402882830,1768951838626,-500.0,0.00017834,2]
[402882831,1768951838636,-151.0,0.00017835,2]
[402882832,1768951838646,-197.01069,0.00017835,2]
[402882833,1768951838656,-197.01069,0.00017835,2]
[402882834,1768951838666,-197.01069,0.00017835,2]
[402882835,1768951838675,-197.01069,0.00017835,2]
[402882836,1768951838685,-183.168984,0.00017835,2]
[402882837,1768951838694,-151.0,0.00017835,2]
[402882838,1768951838704,-151.0,0.00017835,2]
[402882839,1768951838714,-33192.21582317,0.00017835,2]
[402882840,1768951838726,-3197.18973189,0.00017835,2]
[402882841,1768951838737,-6682.4868,0.00017835,2]
[402882842,1768951838754,-79926.79707325,0.00017835,2]
[402882843,1768951838768,-3229.16586342,0.00017835,2]
[402882844,1768951838779,-99879.25176486,0.00017835,2]
[402882845,1768951838791,-329.59732002,0.00017835,2]
[402882846,1768951838803,-35466.75229328,0.00017835,2]
[402882891,1768951839906,-5000.0,0.0001314,2]
[402882893,1768951839915,-8532.48648152,0.00017835,2]
[402882895,1768951839927,-1234.38663589,0.00017835,2]
[402883223,1768951843207,-507.49556332,0.00017835,2]
[402883226,1768951843220,-958.85938964,0.00017835,2]
[402883228,1768951843231,-3722.3649,0.00017835,2]
[402883490,1768951845818,-496.4393258,0.00017594,2]
[402883493,1768951845829,-1125.08299717,0.00017835,2]
[402883495,1768951845841,-8218.81736236,0.00017835,2]
[402883498,1768951845861,-8810.0,0.00017835,2]
[402883500,1768951845871,-669.03005193,0.00017835,2]
[402883503,1768951845890,-327421.31175101,0.00017835,2]
[402883505,1768951845902,-875.20610749,0.00017835,2]
[402883507,1768951845913,-569.37999998,0.00017835,2]
[402883509,1768951845924,-1610.19785751,0.00017835,2]
[402883511,1768951845935,-10707.07927695,0.00017835,2]
[402883522,1768951846018,-4132.80713712,0.00017835,2]
[402885106,1768951862183,155.96,8.488e-05,2]
[402885148,1768951862600,181.95,8.814e-05,2]
[402886106,1768951934075,151.85,8.84e-05,2]
[402886120,1768952054973,5000.0,8.876e-05,2]
[402886121,1768952077341,162.08,7.812e-05,2]
[402886122,1768952077661,4686.08,8.876e-05,2]
[402886123,1768952077688,313.92,8.876e-05,2]
[402886124,1768952077757,202.61,8.138e-05,2]
[402886125,1768952078304,243.13,8.463e-05,2]
[402886126,1768952078705,283.65,8.789e-05,2]
[402886128,1768952100929,5000.0,8.876e-05,2]
[402886129,1768952109642,3956.7,8.876e-05,2]
[402886130,1768952109664,1043.3,8.876e-05,2]
[402886131,1768952134408,5000.0,8.876e-05,2]
[402886133,1768952142959,3956.71,8.876e-05,2]
[402886134,1768952142982,1043.29,8.876e-05,2]
[402886135,1768952151376,175.05,8.542e-05,2]
[402886136,1768952151801,204.23,8.871e-05,2]
[402886137,1768952158918,170.63425009,8.876e-05,2]
[402886138,1768952228854,-170.44,8.884e-05,2]
[402886139,1768952247065,2688.19,8.884e-05,2]
[402886140,1768952270134,2311.81,8.884e-05,2]
[402886150,1768953031807,-5000.0,9.556e-05,2]
[402886151,1768953031816,-554.0,9.556e-05,2]
[402886152,1768953031825,-169.35,9.924e-05,2]
[402886153,1768953031835,-193.54,0.00010292,2]
[402886154,1768953031843,-217.74,0.00010659,2]
[402886155,1768953031852,-241.93,0.00011027,2]
[402886156,1768953031861,-177.0,0.00011704,2]
[402886157,1768953031870,-300.0,0.00013271,2]
[402886158,1768953031879,-300.0,0.00013271,2]
[402886159,1768953031888,-1200.0,0.00013271,2]
[402886160,1768953031897,-500.0,0.00013273,2]
[402886161,1768953031906,-109.3384125,0.00013273,2]
[402886162,1768953031927,-390.6615875,0.00013273,2]
[402886163,1768953031936,-501.85584568,0.00013273,2]
[402886164,1768953031945,-237.59521882,0.00013273,2]
[402886238,1768953037876,-174.44336838,0.00013273,2]
[402886239,1768953037885,-500.0,0.00013273,2]
[402886240,1768953037895,-500.0,0.00013273,2]
[402886241,1768953037904,-500.0,0.00013273,2]
[402886242,1768953037913,-241.59353127,0.00013273,2]
[402886243,1768953037923,-302.0,0.000135,2]
[402886245,1768953037932,-204.0,0.00013704,2]
[402886247,1768953037942,-1000.0,0.00014072,2]
[402886249,1768953037951,-268.7103561,0.00014148,2]
[402886251,1768953037960,-38.07032825,0.00014358,2]
[402886255,1768953037993,-656.99237185,0.00014358,2]
[402886257,1768953038003,-217.4645806,0.00014367,2]
[402886260,1768953038012,-420.0,0.0001455,2]
[402886263,1768953038021,-1151.0,0.00014598,2]
[402886266,1768953038031,-231.23945518,0.000154,2]
[402886269,1768953038041,-231.0,0.00015704,2]
[402886272,1768953038050,-231.23945518,0.00016449,17]
[402886274,1768953038060,-216.6269672,0.00016795,2]
[402886276,1768953038070,-194.4255045,0.00016978,2]
[402886278,1768953038079,-9868.10363617,0.0001699,2]
[402886280,1768953038089,-194.4255045,0.00017078,2]
[402886281,1768953038098,-194.4255045,0.00017078,2]
[402886284,1768953038108,-162.380719,0.00017364,2]
[402886285,1768953038117,-500.0,0.00017364,2]
[402886287,1768953038126,-250.0,0.00017364,2]
[402886289,1768953038135,-265.97969829,0.00017364,2]
[402886291,1768953038145,-500.0,0.00017364,2]
[402886293,1768953038155,-250.0,0.00017364,2]
[402886295,1768953038164,-549.35290746,0.00017364,2]
[402886297,1768953038174,-250.0,0.00017364,2]
[402886299,1768953038183,-250.0,0.00017364,2]
[402886301,1768953038192,-537.6845,0.00017364,2]
[402886303,1768953038201,-250.0,0.00017364,2]
[402886305,1768953038210,-255.24985543,0.00017364,2]
[402886307,1768953038220,-250.0,0.00017364,2]
[402886309,1768953038229,-250.0,0.00017364,2]
[402886311,1768953038238,-250.0,0.00017364,2]
[402886313,1768953038247,-160.0,0.00017364,2]
[402886315,1768953038257,-250.0,0.00017364,2]
[402886317,1768953038266,-250.0,0.00017364,2]
[402886319,1768953038276,-160.0,0.00017364,2]
[402886321,1768953038285,-250.0,0.00017364,2]
[402886323,1768953038294,-190.83491824,0.00017364,2]
[402886325,1768953038303,-250.0,0.00017364,2]
[402886327,1768953038312,-250.0,0.00017364,2]
[402886329,1768953038322,-250.0,0.00017364,2]
[402886331,1768953038331,-322.67465822,0.00017364,2]
[402886333,1768953038341,-250.0,0.00017364,2]
[402886335,1768953038351,-250.0,0.00017364,2]
[402886337,1768953038363,-445.202766,0.00017364,2]
[402886339,1768953038372,-151.0,0.00017364,2]
[402886341,1768953038381,-2150.738,0.00017364,2]
[402886343,1768953038390,-151.0,0.00017364,2]
[402886345,1768953038402,-196.9088468,0.00017364,2]
[402886347,1768953038411,-151.0,0.00017364,2]
[402886349,1768953038420,-2000.0,0.00017364,2]
[402886351,1768953038431,-2000.0,0.00017364,2]
[402886353,1768953038440,-2000.0,0.00017364,2]
[402886355,1768953038450,-1000.0,0.00017364,2]
[402886357,1768953038459,-432.2326821,0.00017404,2]
[402886359,1768953038468,-157.05612295,0.00017472,2]
[402886361,1768953038478,-231.23945518,0.00017498,32]
[402886363,1768953038487,-500.0,0.0001755,2]
[402886365,1768953038497,-500.0,0.0001755,2]
[402886367,1768953038506,-500.0,0.0001755,2]
[402886369,1768953038515,-1597039.66072732,0.00017635,2]
[402886371,1768953038525,-500.0,0.00017687,2]
[402886373,1768953038535,-500.0,0.00017687,2]
[402886375,1768953038545,-500.0,0.00017687,2]
[402886377,1768953038554,-258.0,0.00017704,2]
[402886379,1768953038563,-2449.85,0.00017725,3]
[402886381,1768953038573,-1224.92,0.00017725,3]
[402886383,1768953038583,-612.46,0.00017725,3]
[402886385,1768953038592,-306.23,0.00017725,3]
[402886387,1768953038601,-153.12,0.00017725,3]
[402886389,1768953038611,-459.38,0.00017725,3]
[402886390,1768953038621,-216.9131993,0.00017734,2]
[402886391,1768953038631,-374.07449571,0.00017734,2]
[402886393,1768953038640,-65260.22162208,0.00017735,2]
[402886443,1768953039130,-1095.37123157,0.00017735,2]
[402886445,1768953039142,-1703.45085993,0.00017735,2]
[402886447,1768953039155,-283.32,0.00017735,2]
[402886450,1768953039172,-9632.68039982,0.00017735,2]
[402886540,1768953040274,-45144.16369009,0.00017735,2]
[402886542,1768953040286,-733.73686278,0.00017735,2]
[402886544,1768953040297,-528.89051107,0.00017735,2]
[402886547,1768953040311,-994.17067509,0.00017735,2]
[402886549,1768953040322,-996.56945153,0.00017735,2]
[402886551,1768953040335,-755.6523831,0.00017735,2]
[402886852,1768953043010,-447.54,0.00017735,2]
[402887136,1768953045959,-261.852147,0.00017634,2]
[402887138,1768953045968,-10048.76434854,0.00017735,2]
[402892644,1768954232049,-629.30076944,0.0001275,2]
[402892646,1768954232061,-709.4838733,0.0001275,2]
[402892652,1768954232116,-917.30566123,0.0001275,2]
[402892654,1768954232127,-736.26835236,0.0001275,2]
[402892656,1768954232138,-2007.64134367,0.0001275,2]
[402892657,1768954232159,-602.0,0.00012879,2]
[402892658,1768954232168,-165.00060773,0.0001301,2]
[402892659,1768954232178,-164.58073526,0.00013273,2]
[402892661,1768954232187,-500.0,0.00013273,2]
[402892662,1768954232197,-500.0,0.00013699,2]
[402892664,1768954232206,-1200.0,0.00014244,2]
[402892666,1768954232216,-1000.0,0.00014247,2]
[402892668,1768954232226,-300.0,0.00014784,2]
[402892670,1768954232235,-1500.0,0.00014795,2]
[402892671,1768954232245,-194.70071712,0.0001501,2]
[402892673,1768954232254,-287.246569,0.00015068,2]
[402892675,1768954232263,-974.0,0.00015068,2]
[402892676,1768954232273,-1500.0,0.00015342,2]
[402892677,1768954232284,-200.0,0.00016473,2]
[402892678,1768954232295,-1117.68615288,0.0001679,2]
[402892728,1768954238845,-1402221.78421981,0.0001679,2]
[402892730,1768954238856,-329263.49615708,0.0001679,2]
[402892907,1768954240556,-305.0716759,0.0001679,2]
[402893169,1768954243231,-1324.28801144,0.0001679,2]
[402895566,1768955432152,-598.02255838,0.00012005,2]
[402895567,1768955432163,-2194.49325349,0.00012005,2]
[402895568,1768955432173,-589.0,0.00012005,2]
[402895570,1768955432182,-5000.0,0.00012126,2]
[402895572,1768955432191,-186.39122849,0.0001231,2]
[402895574,1768955432201,-1200.0,0.00012748,2]
[402895576,1768955432210,-300.0,0.00013269,2]
[402895578,1768955432219,-271.86141758,0.00013273,2]
[402895580,1768955432228,-500.0,0.00013273,2]
[402895582,1768955432237,-500.0,0.00013273,2]
[402895584,1768955432246,-556.99110983,0.00013273,2]
[402895586,1768955432255,-289.20182477,0.00013273,2]
[402895589,1768955432272,-420.87963711,0.00013273,2]
[402895591,1768955432284,-500.0,0.00013273,2]
[402895594,1768955432294,-500.0,0.00013699,2]
[402895597,1768955432304,-1000.0,0.00014247,2]
[402895600,1768955432314,-219.94164962,0.0001431,2]
[402895603,1768955432323,-496.4393258,0.0001438,2]
[402895605,1768955432333,-1500.0,0.00014795,2]
[402895607,1768955432343,-475.0,0.00015,2]
[402895609,1768955432353,-475.0,0.00015,2]
[402895611,1768955432363,-178.341726,0.00015227,2]
[402895613,1768955432374,-2000.0,0.00015342,2]
[402895615,1768955432383,-500.0,0.00015613,2]
[402895617,1768955432393,-500.0,0.00015613,2]
[402895619,1768955432403,-165.55006213,0.00015613,2]
[402895621,1768955432413,-500.0,0.00015613,2]
[402895623,1768955432422,-500.0,0.00015613,2]
[402895625,1768955432432,-500.0,0.00015613,2]
[402895627,1768955432442,-500.0,0.00015613,2]
[402895629,1768955432451,-500.0,0.00015613,2]
[402895631,1768955432461,-500.0,0.00015613,2]
[402895633,1768955432470,-500.0,0.00015613,2]
[402895636,1768955432480,-500.0,0.00015613,2]
[402895638,1768955432490,-500.0,0.00015613,2]
[402895640,1768955432499,-500.0,0.00015613,2]
[402895642,1768955432509,-500.0,0.00015613,2]
[402895644,1768955432519,-500.0,0.00015613,2]
[402895646,1768955432528,-500.0,0.00015613,2]
[402895648,1768955432538,-509.29629629,0.00015613,2]
[402895650,1768955432547,-500.0,0.00015613,2]
[402895652,1768955432557,-617.89234006,0.00015613,2]
[402895654,1768955432567,-500.0,0.00015613,2]
[402895656,1768955432577,-500.0,0.00015613,2]
[402895658,1768955432586,-500.0,0.00015613,2]
[402895660,1768955432596,-500.0,0.00015613,2]
[402895662,1768955432606,-500.0,0.00015613,2]
[402895664,1768955432615,-500.0,0.00015613,2]
[402895666,1768955432625,-500.0,0.00015613,2]
[402895668,1768955432635,-500.0,0.00015613,2]
[402895670,1768955432644,-500.0,0.00015613,2]
[402895672,1768955432654,-500.0,0.00015613,2]
[402895674,1768955432667,-500.0,0.00015613,2]
[402895676,1768955432677,-500.0,0.00015613,2]
[402895679,1768955432686,-500.0,0.00015613,2]
[402895681,1768955432696,-500.0,0.00015613,2]
[402895683,1768955432705,-500.0,0.00015613,2]
[402895685,1768955432715,-500.0,0.00015613,2]
[402895687,1768955432725,-500.0,0.00015613,2]
[402895689,1768955432735,-500.0,0.00015613,2]
[402895691,1768955432745,-500.0,0.00015613,2]
[402895693,1768955432755,-500.0,0.00015613,2]
[402895695,1768955432764,-500.0,0.00015613,2]
[402895697,1768955432779,-500.0,0.00015613,2]
[402895699,1768955432790,-278.5,0.00015613,2]
[402895701,1768955432800,-500.0,0.00015613,2]
[402895704,1768955432810,-500.0,0.00015613,2]
[402895706,1768955432819,-500.0,0.00015613,2]
[402895708,1768955432829,-338.35051066,0.00015613,2]
[402895710,1768955432838,-500.0,0.00015613,2]
[402895712,1768955432847,-500.0,0.00015613,2]
[402895714,1768955432857,-500.0,0.00015613,2]
[402895716,1768955432868,-500.0,0.00015613,2]
[402895718,1768955432878,-500.0,0.00015613,2]
[402895720,1768955432888,-500.0,0.00015613,2]
[402895722,1768955432898,-500.0,0.00015613,2]
[402895724,1768955432908,-500.0,0.00015613,2]
[402895726,1768955432918,-500.0,0.00015613,2]
[402895728,1768955432928,-500.0,0.00015613,2]
[402895730,1768955432938,-190.00791275,0.00015613,2]
[402895732,1768955432947,-500.0,0.00015613,2]
[402895735,1768955432957,-500.0,0.00015613,2]
[402895736,1768955432968,-500.0,0.00015613,2]
[402895738,1768955432978,-500.0,0.00015613,2]
[402895740,1768955432988,-500.0,0.00015613,2]
[402895742,1768955432998,-500.0,0.00015613,2]
[402895744,1768955433008,-500.0,0.00015613,2]
[402895746,1768955433017,-500.0,0.00015613,2]
[402895748,1768955433027,-500.0,0.00015613,2]
[402895750,1768955433039,-500.0,0.00015613,2]
[402895752,1768955433050,-500.0,0.00015613,2]
[402895754,1768955433060,-500.0,0.00015613,2]
[402895756,1768955433070,-500.0,0.00015613,2]
[402895758,1768955433081,-500.0,0.00015613,2]
[402895760,1768955433091,-300.0,0.00015613,2]
[402895762,1768955433101,-500.0,0.00015613,2]
[402895764,1768955433113,-499.99999999,0.00015613,2]
[402895766,1768955433126,-500.0,0.00015613,2]
[402895768,1768955433136,-500.0,0.00015613,2]
[402895770,1768955433146,-200.0,0.00015613,2]
[402895773,1768955433156,-500.0,0.00015613,2]
[402895775,1768955433165,-500.0,0.00015615,2]
[402895777,1768955433175,-500.0,0.00015715,2]
[402895779,1768955433184,-500.0,0.00015715,2]
[402895781,1768955433194,-500.0,0.00015752,2]
[402895783,1768955433204,-500.0,0.00015852,2]
[402895785,1768955433214,-500.0,0.00015852,2]
[402895787,1768955433224,-500.0,0.00015887,2]
[402895789,1768955433234,-500.0,0.00015889,2]
[402895791,1768955433243,-216.9131993,0.00015889,2]
[402895793,1768955433252,-352.58964633,0.00015889,2]
[402895795,1768955433262,-2500.0,0.0001589,2]
[402895797,1768955433271,-500.0,0.00015989,2]
[402895799,1768955433282,-500.0,0.00015989,2]
[402895801,1768955433291,-468.06018801,0.00016026,2]
[402895803,1768955433301,-500.0,0.00016126,2]
[402895805,1768955433311,-500.0,0.00016126,2]
[402895806,1768955433320,-500.0,0.00016263,2]
[402895807,1768955433330,-500.0,0.00016263,2]
[402895808,1768955433340,-253.49207075,0.0001631,2]
[402895809,1768955433350,-500.0,0.000164,2]
[402895810,1768955433360,-500.0,0.000164,2]
[402895811,1768955433371,-281.28806043,0.00016473,2]
[402895812,1768955433381,-154.00042782,0.00016537,2]
[402895813,1768955433391,-500.0,0.00016537,2]
[402895814,1768955433400,-500.0,0.00016674,2]
[402895815,1768955433410,-2449.85,0.0001678,3]
[402895816,1768955433419,-1224.92,0.0001678,3]
[402895817,1768955433429,-612.46,0.0001678,3]
[402895818,1768955433438,-1169.0,0.0001679,2]
[402895819,1768955433448,-647.0,0.0001679,2]
[402895820,1768955433459,-2000.0,0.0001679,2]
[402895821,1768955433468,-500.0,0.00016811,2]
[402895822,1768955433478,-6719.7883744,0.00016841,2]
[402895823,1768955433488,-1327.9051632,0.00016841,2]
[402895824,1768955433498,-2150.738,0.00016879,2]
[402895825,1768955433508,-151.0,0.00016879,2]
[402895826,1768955433517,-250.0,0.00016879,2]
[402895827,1768955433527,-151.0,0.00016879,2]
[402895828,1768955433537,-250.0,0.00016879,2]
[402895829,1768955433546,-151.0,0.00016879,2]
[402895831,1768955433556,-250.0,0.00016879,2]
[402895832,1768955433565,-196.9088468,0.00016879,2]
[402895834,1768955433575,-445.202766,0.00016879,2]
[402895836,1768955433585,-250.0,0.00016879,2]
[402895838,1768955433594,-250.0,0.00016879,2]
[402895840,1768955433604,-250.0,0.00016879,2]
[402895842,1768955433615,-160.0,0.00016879,2]
[402895844,1768955433624,-250.0,0.00016879,2]
[402895846,1768955433634,-160.0,0.00016879,2]
[402895848,1768955433643,-250.0,0.00016879,2]
[402895850,1768955433653,-162.380719,0.00016879,2]
[402895852,1768955433662,-190.83491824,0.00016879,2]
[402895854,1768955433672,-250.0,0.00016879,2]
[402895856,1768955433681,-250.0,0.00016879,2]
[402895858,1768955433690,-250.0,0.00016879,2]
[402895860,1768955433700,-322.67465822,0.00016879,2]
[402895862,1768955433709,-2000.0,0.00016879,2]
[402895864,1768955433719,-2000.0,0.00016879,2]
[402895867,1768955433728,-255.24985543,0.00016879,2]
[402895868,1768955433739,-2000.0,0.00016879,2]
[402895870,1768955433749,-1000.0,0.00016879,2]
[402895872,1768955433758,-500.0,0.00016879,2]